[Event "XVI Memorial Lezcano Montalvo 2024"]
[Site "Gran Canaria"]
[Date "2024.03.28"]
[Round "6.11"]
[White "Loiacono, Leonardo"]
[Black "Pleschke, Julius Jonas"]
[Result "1-0"]
[ECO "A14"]
[WhiteElo "2316"]
[BlackElo "1993"]
[Annotator "RC"]
[PlyCount "137"]
[EventDate "2024.03.23"]
[EventType "swiss"]
[EventCountry "ESP"]
[SourceTitle "playchess.com"]
[Source "ChessBase"]
[SourceQuality "1"]
[TimeControl "5400+30"]

1. Nf3 {[%emt 0:08:16]} Nf6 {[%emt 0:00:12]} 2. g3 {[%emt 0:00:15]} e6 {[%emt 0:00:49]} 3. Bg2 {[%emt 0:00:12]} Be7 {[%emt 0:00:38]} 4. O-O {[%emt 0:00:50]} d5 {[%emt 0:00:09]} 5. c4 {[%emt 0:02:47]} O-O {[%emt 0:00:24]} 6. b3 {[%emt 0:00:08]} c5 {[%emt 0:04:13]} 7. cxd5 {[%emt 0:00:59]} Nxd5 {[%emt 0:04:17]} 8. Bb2 {[%emt 0:00:04]} Nc6 {[%emt 0:02:14]} 9. d4 {[%emt 0:00:54]} cxd4 {[%emt 0:12:45]} 10. Nxd4 {[%emt 0:00:04]} Nxd4 {[%emt 0:09:47]} 11. Qxd4 {[%emt 0:17:15]} Bf6 {[%emt 0:01:10]} 12. Qd2 {[%emt 0:00:01]} Nf4 {[%emt 0:11:24]} 13. gxf4 {[%emt 0:00:11]} Qxd2 {[%emt 0:00:09]} 14. Nxd2 {[%emt 0:00:02]} Bxb2 {[%emt 0:00:12]} 15. Rab1 {[%emt 0:01:19]} Bf6 {[%emt 0:04:40]} 16. Ne4 {[%emt 0:01:00]} Rb8 {[%emt 0:02:33]} 17. Rbc1 {[%emt 0:05:19]} b6 {[%emt 0:06:08]} 18. Nxf6+ {[%emt 0:05:09]} gxf6 {[%emt 0:00:09]} 19. Rc7 {[%emt 0:01:09]} a5 {[%emt 0:01:49]} 20. Rd1 {[%emt 0:05:24]} Ba6 {[%emt 0:01:53]} 21. Bf3 {[%emt 0:00:05]} Rfc8 {[%emt 0:09:02]} 22. Rxc8+ {[%emt 0:06:23]} Rxc8 {[%emt 0:00:21]} 23. Rd6 {[%emt 0:00:12]} Rc2 {[%emt 0:05:26]} 24. Kf1 {[%emt 0:01:12]} Rc1+ {[%emt 0:00:37]} 25. Kg2 {[%emt 0:00:04]} Rc2 {[%emt 0:00:05]} 26. f5 {[%emt 0:19:25]} Bxe2 {[%emt 0:09:32]} 27. Be4 {[%emt 0:00:30]} Rc5 {[%emt 0:04:31]} 28. Rxb6 {[%emt 0:00:14]} exf5 {[%emt 0:02:11]} 29. Bf3 {[%emt 0:00:59]} Bxf3+ {[%emt 0:01:11]} 30. Kxf3 {[%emt 0:00:04]} Rc2 {[%emt 0:00:42]} 31. a4 {[%emt 0:01:24]} Kg7 {[%emt 0:01:28]} 32. Rb5 {[%emt 0:00:22]} Rb2 {[%emt 0:00:19]} 33. Rxf5 {[%emt 0:00:48]} Rxb3+ {[%emt 0:00:07]} 34. Kg2 {[%emt 0:00:03]} Ra3 {[%emt 0:00:57]} 35. Rxa5 {[%emt 0:00:06]} h6 {[%emt 0:01:06]} 36. Ra8 {[%emt 0:00:57]} Kh7 {[%emt 0:00:26]} 37. f3 {[%emt 0:00:21]} Rb3 {[%emt 0:02:11]} 38. Re8 {[%emt 0:02:34]} f5 {[%emt 0:01:18]} 39. Re5 {[%emt 0:00:25]} Kg6 {[%emt 0:00:31]} 40. Rb5 {[%emt 0:00:06]} Ra3 {[%emt 0:00:11]} 41. Rb4 {[%emt 0:00:08]} Kf6 {[%emt 0:02:28]} 42. Kg3 {[%emt 0:00:14]} Ke5 {[%emt 0:00:33]} 43. Rb5+ {[%emt 0:01:19]} Kf6 {[%emt 0:00:20]} 44. Rb6+ {[%emt 0:00:04]} Kg5 {[%emt 0:00:46]} 45. Rb4 {[%emt 0:01:53]} h5 {[%emt 0:00:29]} 46. h4+ {[%emt 0:00:13]} Kg6 {[%emt 0:00:05]} 47. Kf4 {[%emt 0:00:07]} f6 {[%emt 0:00:37]} 48. Rc4 {[%emt 0:01:18]} Kg7 {[%emt 0:00:42]} 49. Kxf5 {[%emt 0:02:21]} Rxf3+ {[%emt 0:00:11]} 50. Ke4 {[%emt 0:01:02]} Ra3 {[%emt 0:00:33]} 51. Kd5 {[%emt 0:00:17]} f5 {[%emt 0:00:43]} 52. Ke5 {[%emt 0:01:27]} Kg6 {[%emt 0:00:11]} 53. Kf4 {[%emt 0:00:37]} Rh3 {[%emt 0:00:59]} 54. Rc6+ {[%emt 0:00:09]} Kf7 {[%emt 0:00:21]} 55. Kg5 {[%emt 0:00:03]} Rg3+ {[%emt 0:00:41]} 56. Kxh5 {[%emt 0:02:03]} f4 {[%emt 0:00:04]} 57. Rc4 {[%emt 0:01:02]} f3 {[%emt 0:00:23]} 58. a5 {[%emt 0:01:52]} Kg7 {[%emt 0:00:39]} 59. Rf4 {[%emt 0:00:35]} Kh7 {[%emt 0:00:47]} 60. a6 {[%emt 0:00:26]} Rg6 {[%emt 0:00:38]} 61. Rf7+ {[%emt 0:00:24]} Rg7 {[%emt 0:00:16]} 62. Rxf3 {[%emt 0:00:05]} Ra7 {[%emt 0:00:40]} 63. Ra3 {[%emt 0:00:55]} Kg8 {[%emt 0:00:23]} 64. Kg6 {[%emt 0:00:11]} Kh8 {[%emt 0:00:04]} 65. Kf6 {[%emt 0:00:10]} Kg8 {[%emt 0:00:16]} 66. Ke6 {[%emt 0:00:06]} Kf8 {[%emt 0:00:01]} 67. Kd6 {[%emt 0:00:06]} Ke8 {[%emt 0:00:03]} 68. Kc6 {[%emt 0:00:06]} Kd8 {[%emt 0:00:03]} 69. Kb6 {[%emt 0:00:06]} 1-0

[Event "XVI Memorial Lezcano Montalvo 2024"]
[Site "Gran Canaria"]
[Date "2024.03.28"]
[Round "6.12"]
[White "Blanco Garcia Bajo, David"]
[Black "Oudeh Mishmesh, Omar"]
[Result "0-1"]
[ECO "B13"]
[WhiteElo "2004"]
[BlackElo "2301"]
[Annotator "RC"]
[PlyCount "130"]
[EventDate "2024.03.23"]
[EventType "swiss"]
[EventCountry "ESP"]
[SourceTitle "playchess.com"]
[Source "ChessBase"]
[SourceQuality "1"]
[TimeControl "5400+30"]

1. e4 {[%emt 0:00:03]} c6 {[%emt 0:00:05]} 2. d4 {[%emt 0:00:07]} d5 {[%emt 0:00:05]} 3. exd5 {[%emt 0:00:09]} cxd5 {[%emt 0:00:04]} 4. Bd3 {[%emt 0:00:10]} Nf6 {[%emt 0:00:30]} 5. Bf4 {[%emt 0:00:41]} Bg4 {[%emt 0:03:03]} 6. Nf3 {[%emt 0:00:51]} e6 {[%emt 0:03:00]} 7. Nbd2 {[%emt 0:02:46]} Bd6 {[%emt 0:00:26]} 8. Bxd6 {[%emt 0:01:20]} Qxd6 {[%emt 0:00:04]} 9. c3 {[%emt 0:02:01]} Nc6 {[%emt 0:03:15]} 10. O-O {[%emt 0:00:53]} O-O {[%emt 0:00:17]} 11. Re1 {[%emt 0:03:40]} Rfc8 {[%emt 0:04:57]} 12. Qb3 {[%emt 0:03:55]} a6 {[%emt 0:11:10]} 13. Ne5 {[%emt 0:03:59]} Qc7 {[%emt 0:04:34]} 14. Nxg4 {[%emt 0:05:58]} Nxg4 {[%emt 0:00:04]} 15. Nf3 {[%emt 0:00:08]} Rab8 {[%emt 0:17:00]} 16. Rac1 {[%emt 0:14:20]} b5 {[%emt 0:01:43]} 17. Qc2 {[%emt 0:07:13]} h6 {[%emt 0:03:18]} 18. h3 {[%emt 0:04:22]} Nf6 {[%emt 0:00:18]} 19. Qe2 {[%emt 0:00:36]} Qf4 {[%emt 0:04:11]} 20. g3 {[%emt 0:07:38]} Qc7 {[%emt 0:00:50]} 21. a4 {[%emt 0:01:33]} Qb6 {[%emt 0:04:33]} 22. axb5 {[%emt 0:01:51]} axb5 {[%emt 0:00:04]} 23. Ne5 {[%emt 0:16:36]} b4 {[%emt 0:09:02]} 24. Nxc6 {[%emt 0:02:23]} Rxc6 {[%emt 0:00:49]} 25. Qd2 {[%emt 0:00:33]} bxc3 {[%emt 0:02:03]} 26. bxc3 {[%emt 0:00:30]} Rbc8 {[%emt 0:01:02]} 27. Rc2 {[%emt 0:01:48]} Ne8 {[%emt 0:02:08]} 28. Rec1 {[%emt 0:01:47]} Nd6 {[%emt 0:00:36]} 29. Kg2 {[%emt 0:01:47]} Qc7 {[%emt 0:01:47]} 30. Qf4 {[%emt 0:00:57]} Qb6 {[%emt 0:01:04]} 31. Qd2 {[%emt 0:00:17]} Kf8 {[%emt 0:06:22]} 32. Kg1 {[%emt 0:01:21]} Ra8 {[%emt 0:01:20]} 33. Ra2 {[%emt 0:01:22]} Rac8 {[%emt 0:02:37]} 34. Ra6 {[%emt 0:01:44]} Qb3 {[%emt 0:03:01]} 35. Rxc6 {[%emt 0:02:32]} Rxc6 {[%emt 0:00:04]} 36. Rc2 {[%emt 0:02:11]} Nc8 {[%emt 0:01:52]} 37. Qc1 {[%emt 0:02:13]} Nb6 {[%emt 0:01:32]} 38. Be2 {[%emt 0:00:15]} Rc8 {[%emt 0:03:15]} 39. Rb2 {[%emt 0:02:06]} Qa3 {[%emt 0:01:15]} 40. Qb1 {[%emt 0:00:48]} Rxc3 {[%emt 0:00:42]} 41. Kg2 {[%emt 0:03:24]} Nd7 {[%emt 0:03:36]} 42. Rb7 {[%emt 0:00:42]} Rc1 {[%emt 0:02:48]} 43. Qb5 {[%emt 0:01:22]} Qa1 {[%emt 0:01:02]} 44. Bf1 {[%emt 0:01:04]} Rxf1 {[%emt 0:00:31]} 45. Qxf1 {[%emt 0:00:09]} Qxf1+ {[%emt 0:00:20]} 46. Kxf1 {[%emt 0:00:02]} Nf6 {[%emt 0:00:15]} 47. f3 {[%emt 0:00:16]} g5 {[%emt 0:00:26]} 48. Ke2 {[%emt 0:00:27]} Nh5 {[%emt 0:00:22]} 49. Kf2 {[%emt 0:00:36]} Kg7 {[%emt 0:00:05]} 50. Rb2 {[%emt 0:00:53]} Kf6 {[%emt 0:00:25]} 51. h4 {[%emt 0:01:03]} gxh4 {[%emt 0:00:39]} 52. gxh4 {[%emt 0:00:02]} Ng7 {[%emt 0:00:07]} 53. Ke3 {[%emt 0:01:02]} Nf5+ {[%emt 0:00:04]} 54. Kd3 {[%emt 0:00:22]} Nxh4 {[%emt 0:00:05]} 55. Rh2 {[%emt 0:00:25]} Nf5 {[%emt 0:01:01]} 56. Rg2 {[%emt 0:00:30]} h5 {[%emt 0:00:54]} 57. Rh2 {[%emt 0:00:41]} Kg5 {[%emt 0:00:32]} 58. Rh3 {[%emt 0:00:33]} h4 {[%emt 0:00:17]} 59. Rh2 {[%emt 0:00:29]} Kf4 {[%emt 0:00:11]} 60. Rh3 {[%emt 0:00:14]} f6 {[%emt 0:00:30]} 61. Kc3 {[%emt 0:00:48]} Ke3 {[%emt 0:00:15]} 62. f4+ {[%emt 0:00:31]} Kxf4 {[%emt 0:00:06]} 63. Kd3 {[%emt 0:00:01]} Kg4 {[%emt 0:00:08]} 64. Rh1 {[%emt 0:00:19]} h3 {[%emt 0:00:09]} 65. Ke2 {[%emt 0:00:55]} Ng3+ {[%emt 0:00:05]} 0-1

[Event "XVI Memorial Lezcano Montalvo 2024"]
[Site "Gran Canaria"]
[Date "2024.03.28"]
[Round "6.13"]
[White "Van Zyl-Rudd, Jack"]
[Black "Bergero, Simone"]
[Result "1-0"]
[ECO "B30"]
[WhiteElo "2264"]
[BlackElo "2022"]
[Annotator "RC"]
[PlyCount "133"]
[EventDate "2024.03.23"]
[EventType "swiss"]
[EventCountry "ESP"]
[SourceTitle "playchess.com"]
[Source "ChessBase"]
[SourceQuality "1"]
[TimeControl "5400+30"]

1. e4 {[%emt 0:11:13]} c5 {[%emt 0:00:05]} 2. Nf3 {[%emt 0:00:49]} Nc6 {[%emt 0:00:05]} 3. Nc3 {[%emt 0:00:41]} e5 {[%emt 0:00:11]} 4. Bc4 {[%emt 0:00:06]} Be7 {[%emt 0:00:11]} 5. d3 {[%emt 0:01:02]} d6 {[%emt 0:00:16]} 6. a4 {[%emt 0:00:20]} Nf6 {[%emt 0:00:32]} 7. Bg5 {[%emt 0:02:43]} Be6 {[%emt 0:01:58]} 8. Bxf6 {[%emt 0:01:04]} Bxf6 {[%emt 0:00:03]} 9. Nd5 {[%emt 0:00:07]} O-O {[%emt 0:01:32]} 10. O-O {[%emt 0:00:56]} Nd4 {[%emt 0:07:04]} 11. Nxd4 {[%emt 0:00:53]} cxd4 {[%emt 0:00:09]} 12. g3 {[%emt 0:08:17]} Rc8 {[%emt 0:08:09]} 13. Ra3 {[%emt 0:06:32]} Bxd5 {[%emt 0:04:19]} 14. Bxd5 {[%emt 0:00:47]} Qc7 {[%emt 0:00:04]} 15. Rb3 {[%emt 0:02:32]} b6 {[%emt 0:07:31]} 16. Bc4 {[%emt 0:00:13]} Qd7 {[%emt 0:02:31]} 17. Rb5 {[%emt 0:03:37]} Qh3 {[%emt 0:10:47]} 18. Qf3 {[%emt 0:02:17]} Rc5 {[%emt 0:02:53]} 19. Ra1 {[%emt 0:01:30]} Rfc8 {[%emt 0:01:26]} 20. b4 {[%emt 0:15:56]} Rxb5 {[%emt 0:00:18]} 21. axb5 {[%emt 0:00:06]} Rc7 {[%emt 0:50:56]} 22. Rf1 {[%emt 0:13:00]} h5 {[%emt 0:00:00]} 23. Qe2 {[%emt 0:04:32]} Qg4 {[%emt 0:00:00]} 24. f3 {[%emt 0:01:09]} Qg6 {[%emt 0:00:00]} 25. Qg2 {[%emt 0:04:01]} h4 {[%emt 0:00:00]} 26. f4 {[%emt 0:00:12]} hxg3 {[%emt 0:00:00]} 27. hxg3 {[%emt 0:05:03]} exf4 {[%emt 0:00:00]} 28. gxf4 {[%emt 0:03:49]} Qxg2+ {[%emt 0:00:00]} 29. Kxg2 {[%emt 0:00:01]} g6 {[%emt 0:00:00]} 30. Kf3 {[%emt 0:04:31]} Kg7 {[%emt 0:00:00]} 31. Re1 {[%emt 0:01:00]} Bh4 {[%emt 0:00:00]} 32. Re2 {[%emt 0:00:11]} Be7 {[%emt 0:00:00]} 33. Rg2 {[%emt 0:01:42]} f6 {[%emt 0:00:00]} 34. Bb3 {[%emt 0:04:54]} Rc3 {[%emt 0:00:00]} 35. Rg1 {[%emt 0:00:28]} Rc7 {[%emt 0:00:00]} 36. Ra1 {[%emt 0:00:15]} Bf8 {[%emt 0:00:00]} 37. Bd5 {[%emt 0:00:11]} Be7 {[%emt 0:00:00]} 38. Bc6 {[%emt 0:00:18]} d5 {[%emt 0:00:00]} 39. Bxd5 {[%emt 0:00:08]} Bxb4 {[%emt 0:00:00]} 40. e5 {[%emt 0:00:55]} f5 {[%emt 0:00:00]} 41. Ra4 {[%emt 0:01:59]} Bc3 {[%emt 0:00:00]} 42. Bc6 {[%emt 0:00:32]} g5 {[%emt 0:00:00]} 43. fxg5 {[%emt 0:00:21]} Kg6 {[%emt 0:00:00]} 44. Rc4 {[%emt 0:00:57]} Kxg5 {[%emt 0:00:00]} 45. Rxc3 {[%emt 0:00:27]} dxc3 {[%emt 0:00:00]} 46. d4 {[%emt 0:00:01]} Rh7 {[%emt 0:00:00]} 47. d5 {[%emt 0:00:31]} Rh2 {[%emt 0:00:00]} 48. d6 {[%emt 0:00:04]} Rxc2 {[%emt 0:00:00]} 49. e6 {[%emt 0:00:05]} Rd2 {[%emt 0:03:12]} 50. e7 {[%emt 0:00:02]} c2 {[%emt 0:00:32]} 51. e8=Q {[%emt 0:00:02]} Rd3+ {[%emt 0:00:09]} 52. Ke2 {[%emt 0:00:31]} c1=Q {[%emt 0:00:03]} 53. Kxd3 {[%emt 0:02:34]} Qa3+ {[%emt 0:00:40]} 54. Kc4 {[%emt 0:01:23]} Qc5+ {[%emt 0:00:05]} 55. Kb3 {[%emt 0:00:00]} Qxd6 {[%emt 0:00:04]} 56. Qd7 {[%emt 0:00:22]} Qg3+ {[%emt 0:01:42]} 57. Kc4 {[%emt 0:00:11]} Qg4+ {[%emt 0:00:18]} 58. Kd5 {[%emt 0:00:11]} Qe4+ {[%emt 0:00:30]} 59. Kd6 {[%emt 0:00:01]} Qb4+ {[%emt 0:00:30]} 60. Kc7 {[%emt 0:00:08]} f4 {[%emt 0:00:28]} 61. Kb7 {[%emt 0:00:17]} Qa3 {[%emt 0:00:28]} 62. Qg7+ {[%emt 0:01:05]} Kh4 {[%emt 0:00:06]} 63. Kb8 {[%emt 0:00:29]} a5 {[%emt 0:01:19]} 64. Qh6+ {[%emt 0:00:20]} Kg4 {[%emt 0:00:24]} 65. Qg6+ {[%emt 0:00:05]} Kh4 {[%emt 0:00:05]} 66. Qh6+ {[%emt 0:00:59]} Kg4 {[%emt 0:00:05]} 67. Bd7+ {[%emt 0:00:03]} 1-0

[Event "XVI Memorial Lezcano Montalvo 2024"]
[Site "Gran Canaria"]
[Date "2024.03.28"]
[Round "6.14"]
[White "Zhou, Lepu Coco"]
[Black "Hernando Rodrigo, Jose Maria"]
[Result "1/2-1/2"]
[ECO "B07"]
[WhiteElo "1980"]
[BlackElo "2257"]
[Annotator "RC"]
[PlyCount "52"]
[EventDate "2024.03.23"]
[EventType "swiss"]
[EventCountry "ESP"]
[SourceTitle "playchess.com"]
[Source "ChessBase"]
[SourceQuality "1"]
[TimeControl "5400+30"]

1. e4 {[%emt 0:00:03]} d6 {[%emt 0:00:12]} 2. d4 {[%emt 0:00:07]} Nf6 {[%emt 0:00:08]} 3. Nc3 {[%emt 0:00:13]} c6 {[%emt 0:00:09]} 4. f4 {[%emt 0:00:26]} Qb6 {[%emt 0:00:22]} 5. Nf3 {[%emt 0:01:46]} Bg4 {[%emt 0:01:14]} 6. Be2 {[%emt 0:01:46]} Bxf3 {[%emt 0:01:34]} 7. Bxf3 {[%emt 0:00:13]} e5 {[%emt 0:00:56]} 8. fxe5 {[%emt 0:05:55]} dxe5 {[%emt 0:00:05]} 9. dxe5 {[%emt 0:00:24]} Nfd7 {[%emt 0:00:09]} 10. e6 {[%emt 0:00:46]} fxe6 {[%emt 0:00:06]} 11. Bh5+ {[%emt 0:18:16]} g6 {[%emt 0:00:45]} 12. Bg4 {[%emt 0:00:07]} Na6 {[%emt 0:00:58]} 13. Bxe6 {[%emt 0:04:53]} O-O-O {[%emt 0:05:56]} 14. Bg5 {[%emt 0:01:17]} Qxb2 {[%emt 0:05:57]} 15. Bf6 {[%emt 0:10:34]} Bb4 {[%emt 0:05:55]} 16. Bxh8 {[%emt 0:02:51]} Bxc3+ {[%emt 0:00:07]} 17. Bxc3 {[%emt 0:00:03]} Qxc3+ {[%emt 0:00:07]} 18. Ke2 {[%emt 0:00:16]} Nac5 {[%emt 0:00:58]} 19. Bh3 {[%emt 0:09:17]} Qc4+ {[%emt 0:02:29]} 20. Ke1 {[%emt 0:00:17]} Re8 {[%emt 0:08:55]} 21. Bxd7+ {[%emt 0:06:04]} Nxd7 {[%emt 0:00:07]} 22. Qd3 {[%emt 0:00:13]} Rxe4+ {[%emt 0:00:12]} 23. Kf1 {[%emt 0:00:17]} Rf4+ {[%emt 0:00:34]} 24. Ke2 {[%emt 0:01:22]} Re4+ {[%emt 0:22:34]} 25. Kf1 {[%emt 0:00:17]} Qe6 {[%emt 0:00:40]} 26. Qf3 {[%emt 0:09:45]} Qc4+ {[%emt 0:01:42]} 1/2-1/2

[Event "XVI Memorial Lezcano Montalvo 2024"]
[Site "Gran Canaria"]
[Date "2024.03.28"]
[Round "6.15"]
[White "Quiceno Ramirez, Edwin Alejandro"]
[Black "Fiorito, Fabian"]
[Result "0-1"]
[ECO "E99"]
[WhiteElo "1888"]
[BlackElo "2251"]
[Annotator "RC"]
[PlyCount "78"]
[EventDate "2024.03.23"]
[EventType "swiss"]
[EventCountry "ESP"]
[SourceTitle "playchess.com"]
[Source "ChessBase"]
[SourceQuality "1"]
[TimeControl "5400+30"]

1. d4 {[%emt 0:00:03]} Nf6 {[%emt 0:00:08]} 2. c4 {[%emt 0:00:06]} g6 {[%emt 0:00:39]} 3. Nc3 {[%emt 0:00:08]} Bg7 {[%emt 0:00:30]} 4. e4 {[%emt 0:00:07]} d6 {[%emt 0:00:03]} 5. Nf3 {[%emt 0:00:05]} O-O {[%emt 0:00:08]} 6. Be2 {[%emt 0:00:05]} e5 {[%emt 0:01:17]} 7. O-O {[%emt 0:00:07]} Nc6 {[%emt 0:00:33]} 8. d5 {[%emt 0:00:08]} Ne7 {[%emt 0:00:04]} 9. Ne1 {[%emt 0:00:05]} Nd7 {[%emt 0:00:11]} 10. Be3 {[%emt 0:00:05]} f5 {[%emt 0:00:07]} 11. f3 {[%emt 0:00:05]} f4 {[%emt 0:00:34]} 12. Bf2 {[%emt 0:00:05]} g5 {[%emt 0:00:31]} 13. Nd3 {[%emt 0:00:07]} Ng6 {[%emt 0:01:26]} 14. c5 {[%emt 0:02:55]} Nf6 {[%emt 0:00:24]} 15. Rc1 {[%emt 0:00:12]} Rf7 {[%emt 0:00:12]} 16. cxd6 {[%emt 0:01:10]} cxd6 {[%emt 0:00:06]} 17. Nb5 {[%emt 0:00:06]} a6 {[%emt 0:01:42]} 18. Na3 {[%emt 0:04:48]} b5 {[%emt 0:05:25]} 19. Nb4 {[%emt 0:02:12]} h5 {[%emt 0:04:56]} 20. Nc6 {[%emt 0:04:03]} Qf8 {[%emt 0:00:39]} 21. Nc2 {[%emt 0:27:00]} Bh6 {[%emt 0:02:34]} 22. Kh1 {[%emt 0:09:56]} g4 {[%emt 0:00:26]} 23. Rg1 {[%emt 0:48:22]} g3 {[%emt 0:05:33]} 24. hxg3 {[%emt 0:00:00]} fxg3 {[%emt 0:00:06]} 25. Bxg3 {[%emt 0:00:00]} h4 {[%emt 0:01:24]} 26. Bh2 {[%emt 0:00:00]} Nh5 {[%emt 0:04:40]} 27. g4 {[%emt 0:00:00]} hxg3 {[%emt 0:00:27]} 28. Bxg3 {[%emt 0:00:00]} Rg7 {[%emt 0:02:42]} 29. Bh2 {[%emt 0:00:00]} Bxc1 {[%emt 0:02:45]} 30. Qxc1 {[%emt 0:00:00]} Ngf4 {[%emt 0:00:26]} 31. Bf1 {[%emt 0:00:00]} Rxg1+ {[%emt 0:00:41]} 32. Kxg1 {[%emt 0:00:00]} Qg7+ {[%emt 0:01:40]} 33. Kf2 {[%emt 0:00:00]} Qg5 {[%emt 0:00:55]} 34. Ne3 {[%emt 0:01:16]} Bd7 {[%emt 0:02:37]} 35. Qd2 {[%emt 0:02:55]} Kh8 {[%emt 0:02:21]} 36. Ke1 {[%emt 0:01:31]} Rf8 {[%emt 0:02:06]} 37. Kd1 {[%emt 0:00:32]} Ng6 {[%emt 0:00:49]} 38. Be2 {[%emt 0:00:27]} Nh4 {[%emt 0:00:47]} 39. Ng4 {[%emt 0:01:19]} Qxd2+ {[%emt 0:00:46]} 0-1

[Event "XVI Memorial Lezcano Montalvo 2024"]
[Site "Gran Canaria"]
[Date "2024.03.28"]
[Round "6.16"]
[White "Tytynnik, Artem"]
[Black "Segura Marsa, Andres"]
[Result "1-0"]
[ECO "E92"]
[WhiteElo "2197"]
[BlackElo "1987"]
[Annotator "RC"]
[PlyCount "127"]
[EventDate "2024.03.23"]
[EventType "swiss"]
[EventCountry "ESP"]
[SourceTitle "playchess.com"]
[Source "ChessBase"]
[SourceQuality "1"]
[TimeControl "5400+30"]

1. d4 {[%emt 0:05:41]} Nf6 {[%emt 0:00:17]} 2. c4 {[%emt 0:00:40]} g6 {[%emt 0:00:25]} 3. Nc3 {[%emt 0:00:03]} Bg7 {[%emt 0:00:19]} 4. e4 {[%emt 0:00:05]} d6 {[%emt 0:00:15]} 5. Be2 {[%emt 0:00:22]} O-O {[%emt 0:00:34]} 6. Nf3 {[%emt 0:00:04]} e5 {[%emt 0:00:36]} 7. Be3 {[%emt 0:00:15]} exd4 {[%emt 0:00:55]} 8. Nxd4 {[%emt 0:02:20]} Re8 {[%emt 0:00:33]} 9. f3 {[%emt 0:00:06]} c6 {[%emt 0:00:22]} 10. Bf2 {[%emt 0:00:08]} Nh5 {[%emt 0:00:52]} 11. Qd2 {[%emt 0:00:40]} Be5 {[%emt 0:00:50]} 12. g3 {[%emt 0:01:19]} c5 {[%emt 0:01:05]} 13. Nc2 {[%emt 0:02:25]} Nc6 {[%emt 0:01:21]} 14. O-O-O {[%emt 0:02:25]} a6 {[%emt 0:06:03]} 15. f4 {[%emt 0:07:30]} Bxc3 {[%emt 0:03:00]} 16. Qxc3 {[%emt 0:00:42]} Nf6 {[%emt 0:00:36]} 17. e5 {[%emt 0:07:24]} Ne4 {[%emt 0:04:27]} 18. Qf3 {[%emt 0:02:55]} Nxf2 {[%emt 0:04:46]} 19. Qxf2 {[%emt 0:00:33]} Bf5 {[%emt 0:05:50]} 20. Rxd6 {[%emt 0:04:30]} Qa5 {[%emt 0:00:51]} 21. Bd3 {[%emt 0:00:50]} Bxd3 {[%emt 0:04:20]} 22. Rxd3 {[%emt 0:00:06]} Qxa2 {[%emt 0:00:33]} 23. Qxc5 {[%emt 0:01:04]} Na5 {[%emt 0:01:10]} 24. Qa3 {[%emt 0:05:16]} Qxc4 {[%emt 0:09:02]} 25. Rc3 {[%emt 0:00:32]} Qb5 {[%emt 0:00:26]} 26. Qb4 {[%emt 0:11:42]} Rec8 {[%emt 0:07:56]} 27. Qxb5 {[%emt 0:08:19]} axb5 {[%emt 0:00:02]} 28. Rxc8+ {[%emt 0:02:31]} Rxc8 {[%emt 0:00:02]} 29. Rd1 {[%emt 0:01:19]} b4 {[%emt 0:07:08]} 30. Kb1 {[%emt 0:00:19]} b3 {[%emt 0:01:18]} 31. Ne3 {[%emt 0:08:02]} h5 {[%emt 0:08:41]} 32. Rd5 {[%emt 0:02:47]} Nc4 {[%emt 0:03:54]} 33. Nxc4 {[%emt 0:00:42]} Rxc4 {[%emt 0:00:02]} 34. Rb5 {[%emt 0:00:30]} Rc2 {[%emt 0:05:35]} 35. h4 {[%emt 0:23:54]} Rg2 {[%emt 0:05:19]} 36. Rxb3 {[%emt 0:00:00]} Kf8 {[%emt 0:00:12]} 37. Ka2 {[%emt 0:00:00]} Ke8 {[%emt 0:00:33]} 38. Ka3 {[%emt 0:00:00]} Kd8 {[%emt 0:02:21]} 39. Ka4 {[%emt 0:00:00]} Kc7 {[%emt 0:02:50]} 40. Kb5 {[%emt 0:00:00]} Kb8 {[%emt 0:05:09]} 41. Kc5 {[%emt 0:00:00]} Kc7 {[%emt 0:01:11]} 42. Kd5 {[%emt 0:00:00]} Rd2+ {[%emt 0:00:33]} 43. Ke4 {[%emt 0:00:00]} Re2+ {[%emt 0:00:37]} 44. Kf3 {[%emt 0:00:00]} Rh2 {[%emt 0:00:40]} 45. Rc3+ {[%emt 0:00:00]} Kd7 {[%emt 0:01:06]} 46. Rd3+ {[%emt 0:00:00]} Kc7 {[%emt 0:00:28]} 47. b3 {[%emt 0:01:49]} Rh1 {[%emt 0:02:23]} 48. Ke4 {[%emt 0:00:24]} Re1+ {[%emt 0:00:48]} 49. Re3 {[%emt 0:00:09]} Rf1 {[%emt 0:00:10]} 50. e6 {[%emt 0:02:20]} f6 {[%emt 0:01:15]} 51. e7 {[%emt 0:01:07]} Kd7 {[%emt 0:00:37]} 52. Kd5 {[%emt 0:00:12]} Rd1+ {[%emt 0:02:39]} 53. Kc5 {[%emt 0:00:06]} Ke8 {[%emt 0:00:10]} 54. b4 {[%emt 0:01:58]} Rb1 {[%emt 0:03:43]} 55. b5 {[%emt 0:00:29]} Rb2 {[%emt 0:00:15]} 56. Kb6 {[%emt 0:00:40]} Rb4 {[%emt 0:00:35]} 57. Re6 {[%emt 0:00:53]} g5 {[%emt 0:00:44]} 58. hxg5 {[%emt 0:00:36]} fxg5 {[%emt 0:00:02]} 59. f5 {[%emt 0:00:26]} Rb1 {[%emt 0:00:34]} 60. f6 {[%emt 0:00:12]} Rf1 {[%emt 0:00:15]} 61. Rd6 {[%emt 0:00:06]} Kf7 {[%emt 0:00:43]} 62. Kxb7 {[%emt 0:00:18]} h4 {[%emt 0:00:14]} 63. gxh4 {[%emt 0:00:20]} gxh4 {[%emt 0:00:03]} 64. Rd8 {[%emt 0:00:12]} 1-0

[Event "XVI Memorial Lezcano Montalvo 2024"]
[Site "Gran Canaria"]
[Date "2024.03.28"]
[Round "6.17"]
[White "Perez Garcia, Jimena"]
[Black "Fiorito, Joaquin"]
[Result "0-1"]
[ECO "E73"]
[WhiteElo "1992"]
[BlackElo "2409"]
[Annotator "RC"]
[PlyCount "77"]
[EventDate "2024.03.23"]
[EventType "swiss"]
[EventCountry "ESP"]
[SourceTitle "playchess.com"]
[Source "ChessBase"]
[SourceQuality "1"]
[TimeControl "5400+30"]

1. d4 {[%emt 0:00:50]} Nf6 {[%emt 0:00:09]} 2. c4 {[%emt 0:00:12]} g6 {[%emt 0:00:18]} 3. Nc3 {[%emt 0:00:20]} Bg7 {[%emt 0:00:05]} 4. e4 {[%emt 0:00:19]} d6 {[%emt 0:00:05]} 5. Be2 {[%emt 0:00:33]} O-O {[%emt 0:00:09]} 6. Be3 {[%emt 0:00:17]} Nc6 {[%emt 0:00:35]} 7. d5 {[%emt 0:01:47]} Ne5 {[%emt 0:00:17]} 8. f4 {[%emt 0:00:46]} Ned7 {[%emt 0:01:34]} 9. g4 {[%emt 0:10:40]} c6 {[%emt 0:05:49]} 10. h3 {[%emt 0:07:58]} Qa5 {[%emt 0:02:53]} 11. Bd2 {[%emt 0:10:32]} Qb6 {[%emt 0:02:05]} 12. Qc2 {[%emt 0:02:39]} cxd5 {[%emt 0:00:23]} 13. cxd5 {[%emt 0:00:46]} Nc5 {[%emt 0:01:12]} 14. Rb1 {[%emt 0:10:10]} e6 {[%emt 0:06:41]} 15. g5 {[%emt 0:11:38]} Ne8 {[%emt 0:01:10]} 16. b4 {[%emt 0:02:56]} Na6 {[%emt 0:00:05]} 17. Nf3 {[%emt 0:04:54]} Bd7 {[%emt 0:04:37]} 18. Qb3 {[%emt 0:05:15]} Rc8 {[%emt 0:00:56]} 19. Nd1 {[%emt 0:09:27]} exd5 {[%emt 0:01:34]} 20. exd5 {[%emt 0:01:18]} Bf5 {[%emt 0:02:32]} 21. Be3 {[%emt 0:01:12]} Qd8 {[%emt 0:00:39]} 22. Bd3 {[%emt 0:00:46]} Qd7 {[%emt 0:01:41]} 23. Kf2 {[%emt 0:06:40]} Nec7 {[%emt 0:02:17]} 24. Kg3 {[%emt 0:07:24]} Nb5 {[%emt 0:00:47]} 25. Bxf5 {[%emt 0:01:57]} Qxf5 {[%emt 0:00:06]} 26. Nh4 {[%emt 0:00:38]} Qd7 {[%emt 0:00:34]} 27. Qd3 {[%emt 0:00:47]} Rfe8 {[%emt 0:00:58]} 28. Nf3 {[%emt 0:00:19]} Nc3 {[%emt 0:02:48]} 29. Rb3 {[%emt 0:00:57]} Nxa2 {[%emt 0:00:24]} 30. Qb1 {[%emt 0:01:01]} Nc3 {[%emt 0:00:43]} 31. Qd3 {[%emt 0:00:06]} Nxd1 {[%emt 0:02:24]} 32. Rxd1 {[%emt 0:00:01]} Nxb4 {[%emt 0:00:42]} 33. Qb1 {[%emt 0:00:46]} a5 {[%emt 0:00:32]} 34. Bb6 {[%emt 0:00:28]} Na6 {[%emt 0:00:47]} 35. Bd4 {[%emt 0:01:10]} Re7 {[%emt 0:02:12]} 36. Bxg7 {[%emt 0:00:15]} Kxg7 {[%emt 0:00:04]} 37. Qa1+ {[%emt 0:00:11]} Kg8 {[%emt 0:00:07]} 38. Qxa5 {[%emt 0:00:16]} Nc5 {[%emt 0:00:11]} 39. Qb6 {[%emt 0:01:49]} 0-1